[Event "Grandmaster Tournament Blitz"]
[Site "Biel/Bienne, Switzerland"]
[Date "2019.07.27"]
[Round "9.1"]
[White "Maghsoodloo, Parham"]
[Black "Shankland, Sam"]
[Result "*"]
[ECO "D02"]
[WhiteElo "2719"]
[BlackElo "2660"]
[PlyCount "217"]
[EventDate "2019.??.??"]
[EventType "blitz"]
[TimeControl "3+2"]
[WhiteClock "0:00:07"]
[BlackClock "0:00:16"]

1. d4 {[%emt 0:00:01]} d5 2. Nf3 {[%emt 0:00:00]} Nf6 {[%emt 0:00:00]} 3. Bf4 {
[%emt 0:00:00]} c5 {[%emt 0:00:00]} 4. e3 {[%emt 0:00:00]} Nc6 {[%emt 0:00:00]}
5. c3 {[%emt 0:00:00]} Qb6 {[%emt 0:00:00]} 6. Qb3 {[%emt 0:00:00]} c4 {
[%emt 0:00:00]} 7. Qc2 {[%emt 0:00:00]} Bf5 {[%emt 0:00:00]} 8. Qc1 {[%emt 0:
00:00]} e6 {[%emt 0:00:00]} 9. Nbd2 {[%emt 0:00:00]} h6 {[%emt 0:00:00]} 10.
Be2 {[%emt 0:00:00]} Be7 {[%emt 0:00:00]} 11. O-O {[%emt 0:00:00]} Qa5 {
[%emt 0:00:00]} 12. b4 {[%emt 0:00:00]} Qd8 {[%emt 0:00:00]} 13. a4 {[%emt 0:
00:00]} O-O {[%emt 0:00:00]} 14. h3 {[%emt 0:00:00]} a6 {[%emt 0:00:00]} 15.
Ne5 {[%emt 0:00:00]} Nxe5 {[%emt 0:00:00]} 16. dxe5 {[%emt 0:00:00]} Ne4 {
[%emt 0:00:00]} 17. Nf3 {[%emt 0:00:00]} a5 {[%emt 0:00:00]} 18. b5 {[%emt 0:
00:00]} Nc5 {[%emt 0:00:00]} 19. Nd4 {[%emt 0:00:00]} Bd3 {[%emt 0:00:00]} 20.
Qd1 {[%emt 0:00:00]} Qd7 {[%emt 0:00:00]} 21. Bxd3 {[%emt 0:00:00]} Nxd3 {
[%emt 0:00:00]} 22. Qg4 {[%emt 0:00:00]} f5 {[%emt 0:00:00]} 23. Qg6 {[%emt 0:
00:00]} Nc5 {[%emt 0:00:00]} 24. Bxh6 {[%emt 0:00:00]} Bd8 {[%emt 0:00:00]} 25.
Bg5 {[%emt 0:00:00]} Qf7 {[%emt 0:00:00]} 26. Qxf7+ {[%emt 0:00:00]} Kxf7 {
[%emt 0:00:00]} 27. Bxd8 {[%emt 0:00:00]} Rfxd8 {[%emt 0:00:00]} 28. f4 {
[%emt 0:00:00]} Rh8 {[%emt 0:00:00]} 29. Nf3 {[%emt 0:00:00]} Ne4 {[%emt 0:00:
00]} 30. Rac1 {[%emt 0:00:00]} Ke7 {[%emt 0:00:00]} 31. Kh2 {[%emt 0:00:00]}
Rag8 {[%emt 0:00:00]} 32. g3 {[%emt 0:00:07]} g5 {[%emt 0:00:00]} 33. fxg5 {
[%emt 0:00:01]} Nxg5 {[%emt 0:00:00]} 34. Nxg5 {[%emt 0:00:02]} Rxg5 {[%emt 0:
00:00]} 35. Rf4 {[%emt 0:00:07]} Rgh5 {[%emt 0:00:05]} 36. h4 {[%emt 0:00:02]}
b6 {[%emt 0:00:00]} 37. Rh1 {[%emt 0:00:03]} Kf7 {[%emt 0:00:02]} 38. Kg2 {
[%emt 0:00:02]} Ke7 {[%emt 0:00:08]} 39. Rf2 {[%emt 0:00:09]} Rg8 {[%emt 0:00:
01]} 40. Rh3 {[%emt 0:00:08]} Rgh8 {[%emt 0:00:02]} 41. Rd2 {[%emt 0:00:03]}
R5h7 {[%emt 0:00:04]} 42. Rd4 {[%emt 0:00:02]} Rg8 {[%emt 0:00:07]} 43. h5 {
[%emt 0:00:06]} Rh6 {[%emt 0:00:01]} 44. Kf3 {[%emt 0:00:03]} Kf7 {[%emt 0:00:
10]} 45. g4 {[%emt 0:00:09]} Rg5 {[%emt 0:00:01]} 46. gxf5 {[%emt 0:00:01]}
Rgxh5 {[%emt 0:00:05]} 47. Rxh5 {[%emt 0:00:19]} Rxh5 {[%emt 0:00:01]} 48. e4 {
[%emt 0:00:01]} dxe4+ {[%emt 0:00:28]} 49. Kxe4 {[%emt 0:00:08]} Rh4+ {[%emt 0:
00:00]} 50. Ke3 {[%emt 0:00:01]} Rh3+ {[%emt 0:00:01]} 51. Ke2 {[%emt 0:00:09]}
exf5 52. Rxc4 {[%emt 0:00:00]} Ke6 {[%emt 0:00:05]} 53. Rc6+ {[%emt 0:00:03]}
Kxe5 {[%emt 0:00:01]} 54. Kd2 {[%emt 0:00:02]} Rh2+ {[%emt 0:00:06]} 55. Kd3 {
[%emt 0:00:01]} Rh3+ {[%emt 0:00:01]} 56. Kc4 {[%emt 0:00:01]} Rh4+ {[%emt 0:
00:01]} 57. Kb3 {[%emt 0:00:02]} f4 58. Rxb6 {[%emt 0:00:01]} f3 {[%emt 0:00:
01]} 59. Rb8 {[%emt 0:00:07]} Rf4 {[%emt 0:00:04]} 60. Re8+ {[%emt 0:00:01]}
Kd5 {[%emt 0:00:01]} 61. Rd8+ {[%emt 0:00:03]} Kc5 {[%emt 0:00:02]} 62. Rc8+ {
[%emt 0:00:02]} Kd6 {[%emt 0:00:05]} 63. Rd8+ {[%emt 0:00:03]} Kc5 {[%emt 0:00:
01]} 64. Rd1 {[%emt 0:00:01]} f2 65. Rf1 Rf3 {[%emt 0:00:03]} 66. Kc2 {[%emt 0:
00:01]} Kc4 {[%emt 0:00:04]} 67. Kd2 {[%emt 0:00:01]} Rf6 {[%emt 0:00:10]} 68.
Ke3 {[%emt 0:00:04]} Kxc3 {[%emt 0:00:05]} 69. Rxf2 {[%emt 0:00:00]} Re6+ {
[%emt 0:00:01]} 70. Kf4 {[%emt 0:00:01]} Kb4 {[%emt 0:00:01]} 71. Kf5 {[%emt 0:
00:01]} Re8 {[%emt 0:00:01]} 72. Rf4+ {[%emt 0:00:01]} Kc5 {[%emt 0:00:01]} 73.
Re4 {[%emt 0:00:01]} Rf8+ {[%emt 0:00:02]} 74. Ke5 {[%emt 0:00:01]} Re8+ 75.
Kf4 Rf8+ {[%emt 0:00:02]} 76. Ke3 {[%emt 0:00:02]} Rh8 {[%emt 0:00:01]} 77. Kd3
{[%emt 0:00:01]} Rh3+ {[%emt 0:00:01]} 78. Re3 {[%emt 0:00:03]} Rh4 {[%emt 0:
00:01]} 79. Re5+ {[%emt 0:00:01]} Kb6 {[%emt 0:00:05]} 80. Re4 {[%emt 0:00:01]}
Rh1 {[%emt 0:00:01]} 81. Re6+ {[%emt 0:00:08]} Kc5 {[%emt 0:00:02]} 82. Rc6+ {
[%emt 0:00:01]} Kb4 {[%emt 0:00:02]} 83. Rc4+ {[%emt 0:00:01]} Kb3 {[%emt 0:00:
01]} 84. Rd4 {[%emt 0:00:08]} Rh5 {[%emt 0:00:14]} 85. Ke4 {[%emt 0:00:02]} Ka3
{[%emt 0:00:01]} 86. Kf4 {[%emt 0:00:06]} Kb3 {[%emt 0:00:02]} 87. Re4 {
[%emt 0:00:00]} Rc5 {[%emt 0:00:02]} 88. Ke3 {[%emt 0:00:04]} Rh5 {[%emt 0:00:
01]} 89. Kd3 {[%emt 0:00:01]} Rd5+ {[%emt 0:00:01]} 90. Rd4 {[%emt 0:00:01]}
Rh5 {[%emt 0:00:01]} 91. Ke4 {[%emt 0:00:00]} Ka3 {[%emt 0:00:01]} 92. Kf4 {
[%emt 0:00:03]} Kb3 {[%emt 0:00:01]} 93. Re4 {[%emt 0:00:01]} Rc5 {[%emt 0:00:
01]} 94. Kg4 {[%emt 0:00:01]} Ka3 {[%emt 0:00:02]} 95. Rf4 {[%emt 0:00:01]} Rd5
{[%emt 0:00:01]} 96. Rf5 {[%emt 0:00:02]} Rd4+ {[%emt 0:00:02]} 97. Rf4 {
[%emt 0:00:01]} Rd5 {[%emt 0:00:05]} 98. Kf3 {[%emt 0:00:02]} Kb3 {[%emt 0:00:
03]} 99. Ke4 {[%emt 0:00:01]} Rc5 {[%emt 0:00:02]} 100. Kd4 {[%emt 0:00:01]}
Rh5 {[%emt 0:00:01]} 101. b6 {[%emt 0:00:02]} Kxa4 {[%emt 0:00:04]} 102. Kc4 {
[%emt 0:00:06]} Rb5 {[%emt 0:00:06]} 103. Rf1 {[%emt 0:00:00]} Rb4+ {[%emt 0:
00:01]} 104. Kc5 {[%emt 0:00:01]} Rb5+ {[%emt 0:00:01]} 105. Kc6 {[%emt 0:00:
00]} Rb2 {[%emt 0:00:01]} 106. Ra1+ {[%emt 0:00:08]} Kb4 {[%emt 0:00:02]} 107.
b7 {[%emt 0:00:00]} Rc2+ {[%emt 0:00:01]} 108. Kb6 {[%emt 0:00:01]} Rb2 {
[%emt 0:00:03]} 109. Rxa5 {[%emt 0:00:06]} *

[Event "Grandmaster Tournament Blitz"]
[Site "Biel/Bienne, Switzerland"]
[Date "2019.07.27"]
[Round "9.2"]
[White "Abdusattorov, Nodirbek"]
[Black "Vidit, Santosh Gujrathi"]
[Result "1-0"]
[ECO "D38"]
[WhiteElo "2550"]
[BlackElo "2694"]
[PlyCount "169"]
[EventDate "2019.??.??"]
[EventType "blitz"]
[TimeControl "3+2"]
[WhiteClock "0:00:12"]
[BlackClock "0:00:10"]

1. d4 {[%emt 0:00:00]} Nf6 {[%emt 0:00:00]} 2. c4 {[%emt 0:00:00]} e6 {[%emt 0:
00:00]} 3. Nf3 {[%emt 0:00:00]} d5 {[%emt 0:00:00]} 4. Nc3 {[%emt 0:00:00]} Bb4
{[%emt 0:00:00]} 5. Bg5 {[%emt 0:00:00]} h6 {[%emt 0:00:00]} 6. Bxf6 {[%emt 0:
00:00]} Qxf6 {[%emt 0:00:00]} 7. e3 {[%emt 0:00:00]} O-O {[%emt 0:00:00]} 8.
Qb3 {[%emt 0:00:00]} c5 {[%emt 0:00:00]} 9. a3 {[%emt 0:00:00]} Bxc3+ {[%emt 0:
00:00]} 10. Qxc3 {[%emt 0:00:00]} cxd4 {[%emt 0:00:00]} 11. Qxd4 {[%emt 0:00:
00]} Qxd4 {[%emt 0:00:00]} 12. Nxd4 {[%emt 0:00:00]} dxc4 {[%emt 0:00:00]} 13.
Bxc4 {[%emt 0:00:00]} Bd7 {[%emt 0:00:00]} 14. Ke2 {[%emt 0:00:00]} Rc8 {
[%emt 0:00:00]} 15. Bd3 {[%emt 0:00:00]} Nc6 {[%emt 0:00:00]} 16. Nf3 {[%emt 0:
00:00]} Kf8 {[%emt 0:00:00]} 17. b4 {[%emt 0:00:00]} Rc7 {[%emt 0:00:00]} 18.
Rhd1 {[%emt 0:00:00]} Rac8 {[%emt 0:00:00]} 19. Rd2 {[%emt 0:00:00]} Ke7 {
[%emt 0:00:00]} 20. Rad1 {[%emt 0:00:00]} Be8 {[%emt 0:00:00]} 21. g4 {[%emt 0:
00:00]} a6 {[%emt 0:00:00]} 22. h4 {[%emt 0:00:00]} Na7 {[%emt 0:00:09]} 23.
Nd4 {[%emt 0:00:00]} Rc3 {[%emt 0:00:00]} 24. Ra1 {[%emt 0:00:00]} Ba4 {
[%emt 0:00:00]} 25. Be4 {[%emt 0:00:00]} R8c7 {[%emt 0:00:00]} 26. Rd3 {
[%emt 0:00:00]} Nb5 {[%emt 0:00:00]} 27. Kd2 {[%emt 0:00:00]} Nd6 {[%emt 0:00:
00]} 28. Bf3 {[%emt 0:00:03]} Rxd3+ {[%emt 0:00:00]} 29. Kxd3 {[%emt 0:00:01]}
e5 {[%emt 0:00:00]} 30. Nf5+ {[%emt 0:00:02]} Nxf5 {[%emt 0:00:00]} 31. gxf5 {
[%emt 0:00:01]} Bc2+ {[%emt 0:00:00]} 32. Kd2 {[%emt 0:00:06]} Bxf5 {[%emt 0:
00:00]} 33. a4 {[%emt 0:00:04]} Rc2+ {[%emt 0:00:00]} 34. Ke1 {[%emt 0:00:01]}
Bc8 {[%emt 0:00:00]} 35. a5 {[%emt 0:00:05]} Rc4 {[%emt 0:00:00]} 36. Rb1 {
[%emt 0:00:11]} Rxh4 {[%emt 0:00:00]} 37. b5 {[%emt 0:00:03]} Ra4 {[%emt 0:00:
00]} 38. Rc1 {[%emt 0:00:05]} Bd7 {[%emt 0:00:02]} 39. Rc7 {[%emt 0:00:04]}
Rxa5 {[%emt 0:00:08]} 40. Bg4 {[%emt 0:00:04]} Rxb5 {[%emt 0:00:08]} 41. Rxd7+
{[%emt 0:00:02]} Kf6 {[%emt 0:00:03]} 42. Bf3 {[%emt 0:00:01]} b6 {[%emt 0:00:
02]} 43. Bd5 {[%emt 0:00:03]} a5 {[%emt 0:00:08]} 44. Rxf7+ {[%emt 0:00:02]}
Kg6 {[%emt 0:00:01]} 45. Rd7 {[%emt 0:00:03]} h5 {[%emt 0:00:08]} 46. Ke2 {
[%emt 0:00:01]} Rb4 {[%emt 0:00:04]} 47. Kf3 {[%emt 0:00:03]} a4 {[%emt 0:00:
01]} 48. Ra7 {[%emt 0:00:02]} Kf6 {[%emt 0:00:06]} 49. Bc6 {[%emt 0:00:06]} b5
{[%emt 0:00:00]} 50. Ra5 {[%emt 0:00:05]} g5 {[%emt 0:00:32]} 51. Bxb5 {
[%emt 0:00:02]} a3 {[%emt 0:00:02]} 52. Bc6 {[%emt 0:00:02]} g4+ {[%emt 0:00:
06]} 53. Kg3 {[%emt 0:00:05]} Rb3 {[%emt 0:00:03]} 54. Be4 {[%emt 0:00:04]} Rb4
{[%emt 0:00:07]} 55. Ra6+ {[%emt 0:00:01]} Ke7 {[%emt 0:00:04]} 56. Bd5 {
[%emt 0:00:02]} Rb5 {[%emt 0:00:02]} 57. e4 {[%emt 0:00:00]} Rb1 {[%emt 0:00:
03]} 58. Rxa3 {[%emt 0:00:02]} Rh1 {[%emt 0:00:01]} 59. Kg2 {[%emt 0:00:03]}
Rd1 {[%emt 0:00:03]} 60. Ra6 {[%emt 0:00:01]} h4 {[%emt 0:00:01]} 61. Rg6 {
[%emt 0:00:07]} h3+ {[%emt 0:00:03]} 62. Kh2 {[%emt 0:00:01]} Rd2 {[%emt 0:00:
01]} 63. Rxg4 {[%emt 0:00:02]} Rxf2+ {[%emt 0:00:01]} 64. Kxh3 Kd6 65. Rg5 {
[%emt 0:00:05]} Rf8 {[%emt 0:00:02]} 66. Kg3 {[%emt 0:00:02]} Rf1 {[%emt 0:00:
01]} 67. Kg4 {[%emt 0:00:07]} Rf4+ {[%emt 0:00:01]} 68. Kh5 {[%emt 0:00:01]}
Rf8 {[%emt 0:00:02]} 69. Kg6 {[%emt 0:00:01]} Rf1 {[%emt 0:00:02]} 70. Rf5 {
[%emt 0:00:00]} Rh1 {[%emt 0:00:02]} 71. Rf6+ {[%emt 0:00:06]} Kc5 {[%emt 0:00:
01]} 72. Kf5 {[%emt 0:00:03]} Kd4 {[%emt 0:00:01]} 73. Ke6 {[%emt 0:00:03]} Ra1
{[%emt 0:00:03]} 74. Rf2 {[%emt 0:00:04]} Ra6+ {[%emt 0:00:01]} 75. Kf5 {
[%emt 0:00:01]} Ra1 {[%emt 0:00:08]} 76. Rd2+ {[%emt 0:00:01]} Ke3 {[%emt 0:00:
01]} 77. Rc2 {[%emt 0:00:04]} Kd3 {[%emt 0:00:01]} 78. Rc6 {[%emt 0:00:02]} Rh1
{[%emt 0:00:03]} 79. Kxe5 {[%emt 0:00:01]} Rh5+ {[%emt 0:00:01]} 80. Kd6 {
[%emt 0:00:02]} Rh6+ {[%emt 0:00:02]} 81. Kc5 {[%emt 0:00:02]} Rh5 {[%emt 0:00:
01]} 82. Ra6 {[%emt 0:00:02]} Ke3 {[%emt 0:00:01]} 83. Ra1 {[%emt 0:00:05]} Rh7
{[%emt 0:00:02]} 84. e5 {[%emt 0:00:02]} Kf4 {[%emt 0:00:01]} 85. e6 {[%emt 0:
00:07]} 1-0

[Event "Grandmaster Tournament Blitz"]
[Site "Biel/Bienne, Switzerland"]
[Date "2019.07.27"]
[Round "9.4"]
[White "Cori, Jorge"]
[Black "Bogner, Sebastian"]
[Result "1-0"]
[ECO "A35"]
[WhiteElo "2558"]
[BlackElo "2584"]
[PlyCount "97"]
[EventDate "2019.??.??"]
[EventType "blitz"]
[TimeControl "3+2"]
[WhiteClock "0:00:22"]
[BlackClock "0:00:05"]

1. d4 {[%emt 0:00:00]} Nf6 {[%emt 0:00:00]} 2. c4 {[%emt 0:00:00]} g6 {[%emt 0:
00:00]} 3. Nc3 {[%emt 0:00:00]} Bg7 {[%emt 0:00:00]} 4. Nf3 {[%emt 0:00:00]}
O-O {[%emt 0:00:00]} 5. e3 {[%emt 0:00:00]} c5 {[%emt 0:00:00]} 6. Be2 {
[%emt 0:00:00]} cxd4 {[%emt 0:00:00]} 7. Nxd4 {[%emt 0:00:00]} Nc6 {[%emt 0:00:
00]} 8. O-O {[%emt 0:00:00]} d6 {[%emt 0:00:00]} 9. b3 {[%emt 0:00:00]} Nxd4 {
[%emt 0:00:00]} 10. exd4 {[%emt 0:00:00]} d5 {[%emt 0:00:00]} 11. Be3 {[%emt 0:
00:00]} dxc4 {[%emt 0:00:00]} 12. bxc4 {[%emt 0:00:00]} Qc7 {[%emt 0:00:00]}
13. Rc1 {[%emt 0:00:00]} Bf5 {[%emt 0:00:00]} 14. Nb5 {[%emt 0:00:00]} Qd7 {
[%emt 0:00:00]} 15. h3 {[%emt 0:00:00]} h5 {[%emt 0:00:00]} 16. Qb3 {[%emt 0:
00:00]} Rfd8 {[%emt 0:00:00]} 17. Rfd1 {[%emt 0:00:00]} b6 {[%emt 0:00:00]} 18.
d5 {[%emt 0:00:00]} Ne4 {[%emt 0:00:00]} 19. Nd4 {[%emt 0:00:00]} Nc5 {[%emt 0:
00:00]} 20. Qa3 {[%emt 0:00:00]} Qd6 {[%emt 0:00:00]} 21. Nxf5 {[%emt 0:00:00]}
gxf5 {[%emt 0:00:00]} 22. Bxh5 {[%emt 0:00:00]} f4 {[%emt 0:00:00]} 23. Bxc5 {
[%emt 0:00:00]} bxc5 {[%emt 0:00:00]} 24. Rb1 {[%emt 0:00:00]} Rdb8 {[%emt 0:
00:00]} 25. Qa4 {[%emt 0:00:00]} Bd4 {[%emt 0:00:00]} 26. Qc2 {[%emt 0:00:00]}
Kg7 {[%emt 0:00:00]} 27. Rb3 {[%emt 0:00:00]} Rb6 {[%emt 0:00:01]} 28. Re1 {
[%emt 0:00:00]} Qf6 {[%emt 0:00:05]} 29. Bd1 {[%emt 0:00:08]} Rh8 {[%emt 0:00:
02]} 30. Qe2 {[%emt 0:00:03]} Bc3 {[%emt 0:00:07]} 31. Rf1 {[%emt 0:00:01]} Bd4
{[%emt 0:00:06]} 32. Re1 {[%emt 0:00:01]} Bc3 {[%emt 0:00:01]} 33. Qg4+ {
[%emt 0:00:00]} Kf8 {[%emt 0:00:06]} 34. Re4 {[%emt 0:00:05]} Bd4 {[%emt 0:00:
29]} 35. Rxf4 {[%emt 0:00:15]} Qe5 {[%emt 0:00:01]} 36. Re4 {[%emt 0:00:07]} f5
{[%emt 0:00:08]} 37. Rf3 {[%emt 0:00:10]} Rf6 {[%emt 0:00:10]} 38. Rxe5 {
[%emt 0:00:13]} fxg4 {[%emt 0:00:01]} 39. Rxf6+ {[%emt 0:00:01]} exf6 {[%emt 0:
00:00]} 40. Re6 {[%emt 0:00:01]} gxh3 {[%emt 0:00:01]} 41. gxh3 {[%emt 0:00:03]
} Rxh3 {[%emt 0:00:02]} 42. d6 {[%emt 0:00:03]} Rd3 {[%emt 0:00:04]} 43. d7 {
[%emt 0:00:06]} Rxd1+ {[%emt 0:00:01]} 44. Kg2 {[%emt 0:00:01]} Bxf2 {[%emt 0:
00:05]} 45. Re8+ {[%emt 0:00:01]} Kf7 {[%emt 0:00:00]} 46. d8=Q {[%emt 0:00:03]
} Rxd8 {[%emt 0:00:02]} 47. Rxd8 {[%emt 0:00:01]} Bd4 {[%emt 0:00:06]} 48. Ra8
{[%emt 0:00:01]} Ke6 {[%emt 0:00:01]} 49. Kf3 {[%emt 0:00:00]} 1-0

[Event "Grandmaster Tournament Blitz"]
[Site "Biel/Bienne, Switzerland"]
[Date "2019.07.27"]
[Round "11.1"]
[White "Vidit, Santosh Gujrathi"]
[Black "Shankland, Sam"]
[Result "0-1"]
[ECO "D30"]
[WhiteElo "2694"]
[BlackElo "2660"]
[PlyCount "124"]
[EventDate "2019.??.??"]
[EventType "blitz"]
[TimeControl "3+2"]
[WhiteClock "0:00:12"]
[BlackClock "0:00:24"]

1. d4 {[%emt 0:00:01]} d5 2. Nf3 {[%emt 0:00:00]} Nf6 {[%emt 0:00:00]} 3. c4 {
[%emt 0:00:00]} c6 {[%emt 0:00:00]} 4. Qb3 {[%emt 0:00:00]} e6 {[%emt 0:00:00]}
5. Bg5 {[%emt 0:00:00]} dxc4 {[%emt 0:00:00]} 6. Qxc4 {[%emt 0:00:00]} Qa5+ {
[%emt 0:00:00]} 7. Bd2 {[%emt 0:00:00]} Qc7 {[%emt 0:00:00]} 8. Nc3 {[%emt 0:
00:00]} Nbd7 {[%emt 0:00:00]} 9. e4 {[%emt 0:00:00]} a6 {[%emt 0:00:00]} 10. e5
{[%emt 0:00:00]} b5 {[%emt 0:00:00]} 11. Qb3 {[%emt 0:00:00]} b4 {[%emt 0:00:
00]} 12. Na4 {[%emt 0:00:00]} Nd5 {[%emt 0:00:00]} 13. Rc1 {[%emt 0:00:00]} Be7
{[%emt 0:00:00]} 14. Bd3 {[%emt 0:00:00]} a5 {[%emt 0:00:00]} 15. O-O {[%emt 0:
00:00]} Ba6 {[%emt 0:00:00]} 16. Bxa6 {[%emt 0:00:00]} Rxa6 {[%emt 0:00:00]}
17. Bg5 {[%emt 0:00:00]} O-O {[%emt 0:00:00]} 18. Bxe7 {[%emt 0:00:00]} Nxe7 {
[%emt 0:00:00]} 19. Rc4 {[%emt 0:00:00]} Nb6 {[%emt 0:00:00]} 20. Nxb6 {
[%emt 0:00:00]} Qxb6 {[%emt 0:00:00]} 21. Rfc1 {[%emt 0:00:00]} Rd8 {[%emt 0:
00:00]} 22. Qd3 {[%emt 0:00:00]} h6 {[%emt 0:00:00]} 23. Rc5 {[%emt 0:00:00]}
Ra7 {[%emt 0:00:00]} 24. R1c4 {[%emt 0:00:00]} Rad7 {[%emt 0:00:00]} 25. h3 {
[%emt 0:00:00]} Rd5 {[%emt 0:00:00]} 26. Qc2 {[%emt 0:00:00]} Qa7 {[%emt 0:00:
00]} 27. Qa4 {[%emt 0:00:03]} Qb6 {[%emt 0:00:00]} 28. Qc2 {[%emt 0:00:17]} Qa7
{[%emt 0:00:00]} 29. Rxd5 {[%emt 0:00:07]} Rxd5 {[%emt 0:00:00]} 30. Rc5 {
[%emt 0:00:13]} Nf5 {[%emt 0:00:35]} 31. Rxc6 {[%emt 0:00:06]} g5 {[%emt 0:00:
13]} 32. Qa4 {[%emt 0:00:15]} Qd7 {[%emt 0:00:10]} 33. Qc2 {[%emt 0:00:06]}
Nxd4 {[%emt 0:00:04]} 34. Nxd4 {[%emt 0:00:01]} Rxd4 {[%emt 0:00:00]} 35. Rc7 {
[%emt 0:00:03]} Qd5 {[%emt 0:00:01]} 36. Qe2 {[%emt 0:00:03]} Kg7 {[%emt 0:00:
08]} 37. Ra7 {[%emt 0:00:02]} Re4 {[%emt 0:00:04]} 38. Qf3 {[%emt 0:00:01]}
Re1+ {[%emt 0:00:04]} 39. Kh2 {[%emt 0:00:01]} Qxf3 {[%emt 0:00:01]} 40. gxf3
Rxe5 41. Kg3 {[%emt 0:00:03]} Kg6 {[%emt 0:00:02]} 42. f4 {[%emt 0:00:01]}
gxf4+ {[%emt 0:00:02]} 43. Kxf4 Re2 44. Kf3 {[%emt 0:00:03]} Rxb2 {[%emt 0:00:
01]} 45. Rxa5 {[%emt 0:00:01]} f6 {[%emt 0:00:01]} 46. Kg3 {[%emt 0:00:02]} e5
{[%emt 0:00:01]} 47. f3 {[%emt 0:00:03]} h5 {[%emt 0:00:02]} 48. Ra8 {[%emt 0:
00:02]} Kg5 {[%emt 0:00:02]} 49. h4+ {[%emt 0:00:04]} Kf5 {[%emt 0:00:01]} 50.
Ra6 {[%emt 0:00:01]} Rc2 {[%emt 0:00:02]} 51. Rb6 {[%emt 0:00:02]} Rb2 {
[%emt 0:00:03]} 52. Ra6 {[%emt 0:00:01]} Kg6 {[%emt 0:00:00]} 53. Rb6 {[%emt 0:
00:02]} Kf7 {[%emt 0:00:01]} 54. Ra6 {[%emt 0:00:02]} f5 {[%emt 0:00:03]} 55.
Rb6 {[%emt 0:00:03]} f4+ {[%emt 0:00:01]} 56. Kh3 {[%emt 0:00:01]} Rf2 {
[%emt 0:00:01]} 57. Rxb4 {[%emt 0:00:03]} Rxf3+ {[%emt 0:00:01]} 58. Kg2 {
[%emt 0:00:01]} Rg3+ {[%emt 0:00:00]} 59. Kf2 {[%emt 0:00:01]} Ke6 {[%emt 0:00:
01]} 60. a4 {[%emt 0:00:02]} Ra3 {[%emt 0:00:01]} 61. Rb6+ {[%emt 0:00:02]} Kf5
{[%emt 0:00:00]} 62. Rb4 {[%emt 0:00:01]} Ra2+ {[%emt 0:00:02]} 0-1

[Event "Grandmaster Tournament Blitz"]
[Site "Biel/Bienne, Switzerland"]
[Date "2019.07.27"]
[Round "11.2"]
[White "Maghsoodloo, Parham"]
[Black "Leko, Peter"]
[Result "1-0"]
[ECO "A14"]
[WhiteElo "2719"]
[BlackElo "2743"]
[PlyCount "145"]
[EventDate "2019.??.??"]
[EventType "blitz"]
[TimeControl "3+2"]
[WhiteClock "0:00:10"]
[BlackClock "0:00:04"]

1. Nf3 {[%emt 0:00:00]} Nf6 {[%emt 0:00:00]} 2. c4 {[%emt 0:00:00]} c5 {
[%emt 0:00:00]} 3. b3 {[%emt 0:00:00]} e6 {[%emt 0:00:00]} 4. Bb2 {[%emt 0:00:
00]} Be7 {[%emt 0:00:00]} 5. g3 {[%emt 0:00:00]} b6 {[%emt 0:00:00]} 6. Bg2 {
[%emt 0:00:00]} Bb7 {[%emt 0:00:00]} 7. O-O {[%emt 0:00:00]} O-O {[%emt 0:00:
00]} 8. e3 {[%emt 0:00:00]} d5 {[%emt 0:00:00]} 9. Qe2 {[%emt 0:00:00]} Qc8 {
[%emt 0:00:00]} 10. Nc3 {[%emt 0:00:00]} Rd8 {[%emt 0:00:00]} 11. d3 {[%emt 0:
00:00]} Nc6 {[%emt 0:00:00]} 12. Rfd1 {[%emt 0:00:00]} d4 {[%emt 0:00:00]} 13.
exd4 {[%emt 0:00:00]} cxd4 {[%emt 0:00:00]} 14. Nb5 {[%emt 0:00:00]} Bc5 {
[%emt 0:00:00]} 15. Na3 {[%emt 0:00:06]} Qd7 {[%emt 0:00:00]} 16. Nc2 {[%emt 0:
00:03]} a5 {[%emt 0:00:00]} 17. a3 {[%emt 0:00:07]} Rab8 {[%emt 0:00:00]} 18.
Rab1 {[%emt 0:00:09]} Qd6 {[%emt 0:00:00]} 19. Bc1 {[%emt 0:00:04]} Re8 {
[%emt 0:00:00]} 20. Qe1 {[%emt 0:00:05]} Qd7 {[%emt 0:00:14]} 21. b4 {[%emt 0:
00:01]} axb4 {[%emt 0:00:02]} 22. axb4 {[%emt 0:00:01]} Bf8 {[%emt 0:00:02]}
23. b5 {[%emt 0:00:02]} Na5 {[%emt 0:00:08]} 24. Bf4 {[%emt 0:00:08]} Ra8 {
[%emt 0:00:02]} 25. Ne5 {[%emt 0:00:01]} Qc8 {[%emt 0:00:02]} 26. Bxb7 Qxb7 {
[%emt 0:00:00]} 27. Nxd4 {[%emt 0:00:04]} Nd7 {[%emt 0:00:04]} 28. Nxd7 Qxd7 {
[%emt 0:00:01]} 29. Nf3 {[%emt 0:00:11]} f6 {[%emt 0:00:03]} 30. Be3 {[%emt 0:
00:01]} Qc7 {[%emt 0:00:02]} 31. Qe2 {[%emt 0:00:02]} e5 {[%emt 0:00:02]} 32.
h4 {[%emt 0:00:01]} Rac8 {[%emt 0:00:05]} 33. Rbc1 {[%emt 0:00:02]} Nb3 {
[%emt 0:00:01]} 34. Rb1 {[%emt 0:00:01]} Nc5 {[%emt 0:00:02]} 35. h5 {[%emt 0:
00:01]} Ne6 {[%emt 0:00:02]} 36. Nh4 {[%emt 0:00:02]} Bc5 {[%emt 0:00:01]} 37.
Nf5 {[%emt 0:00:02]} Kh8 {[%emt 0:00:04]} 38. Qg4 {[%emt 0:00:02]} Rcd8 {
[%emt 0:00:02]} 39. Nh4 {[%emt 0:00:06]} Qf7 {[%emt 0:00:03]} 40. Ng6+ {
[%emt 0:00:03]} Kg8 {[%emt 0:00:01]} 41. Nh4 {[%emt 0:00:01]} Rd7 {[%emt 0:00:
04]} 42. Nf5 {[%emt 0:00:01]} Kh8 {[%emt 0:00:01]} 43. h6 {[%emt 0:00:03]} g6 {
[%emt 0:00:01]} 44. Ng7 {[%emt 0:00:01]} Nxg7 {[%emt 0:00:04]} 45. hxg7+ {
[%emt 0:00:01]} Kxg7 {[%emt 0:00:01]} 46. Bxc5 {[%emt 0:00:01]} bxc5 {[%emt 0:
00:02]} 47. b6 Rb8 {[%emt 0:00:02]} 48. Rb5 {[%emt 0:00:01]} Rdb7 {[%emt 0:00:
06]} 49. Rdb1 {[%emt 0:00:01]} Qe7 {[%emt 0:00:01]} 50. Qe2 {[%emt 0:00:07]}
Qd6 {[%emt 0:00:01]} 51. Qb2 {[%emt 0:00:03]} Qxd3 {[%emt 0:00:04]} 52. Rxc5 {
[%emt 0:00:02]} Rxb6 {[%emt 0:00:02]} 53. Rb5 {[%emt 0:00:01]} Rxb5 {[%emt 0:
00:03]} 54. cxb5 {[%emt 0:00:00]} Qd4 {[%emt 0:00:02]} 55. Qb3 {[%emt 0:00:01]}
Qb6 {[%emt 0:00:02]} 56. Qd5 {[%emt 0:00:04]} Rb7 {[%emt 0:00:03]} 57. Rc1 {
[%emt 0:00:04]} Kh6 {[%emt 0:00:03]} 58. Rc5 {[%emt 0:00:01]} Rb8 {[%emt 0:00:
08]} 59. Qd2+ {[%emt 0:00:03]} Kg7 {[%emt 0:00:01]} 60. Rd5 {[%emt 0:00:01]}
Rb7 {[%emt 0:00:01]} 61. Qb4 {[%emt 0:00:04]} h5 {[%emt 0:00:02]} 62. Qc3 {
[%emt 0:00:01]} Qe6 {[%emt 0:00:02]} 63. Qc5 {[%emt 0:00:02]} Kf7 {[%emt 0:00:
03]} 64. Rd6 {[%emt 0:00:02]} Qe7 {[%emt 0:00:01]} 65. b6 {[%emt 0:00:01]} Kg7
{[%emt 0:00:02]} 66. Qd5 {[%emt 0:00:02]} e4 {[%emt 0:00:05]} 67. Re6 {[%emt 0:
00:01]} Qd7 {[%emt 0:00:04]} 68. Qxe4 {[%emt 0:00:02]} Kf7 {[%emt 0:00:01]} 69.
Rc6 {[%emt 0:00:04]} Kg7 {[%emt 0:00:02]} 70. Qc4 {[%emt 0:00:01]} Kh6 {
[%emt 0:00:07]} 71. Qc1+ {[%emt 0:00:01]} Kg7 {[%emt 0:00:03]} 72. Rc7 {
[%emt 0:00:01]} Rxc7 {[%emt 0:00:01]} 73. Qxc7 {[%emt 0:00:00]} 1-0